bitfinex/quotes_ETHUSD_20240603
["timestamp","ask_amount","ask_price","bid_price","bid_amount"]
[1717430708481,2.15488624,3788.2,3788.1,1.44796817]
[1717430709791,1.67857968,3788.2,3788.1,1.44796817]
[1717430709986,0.57058439,3788.2,3788.1,1.44796817]
[1717430711942,0.57058439,3788.2,3788.1,0.1267024]
[1717430712172,1.95538203,3788.2,3788.1,1.44796817]
[1717430712486,1.40145315,3788.2,3788.1,3.70016817]
[1717430712650,2.41510624,3788.3,3788.1,1.44796817]
[1717430712842,1.38479764,3788.4,3788.2,1.32126577]
[1717430713042,0.57054319,3788.3,3788.2,1.32126577]
[1717430713304,1.38479764,3788.4,3788.2,1.32126577]
[1717430713448,1.95534618,3788.3,3788.2,1.32126577]
[1717430714085,1.95534618,3788.3,3788.1,0.1267024]
[1717430714382,2.1508808,3788.2,3788.1,0.1267024]
[1717430714585,0.76608316,3788.2,3788.1,0.1267024]
[1717430715398,5.06761033,3788.2,3788.1,0.1267024]
[1717430716114,3.40585316,3788.2,3788.1,0.1267024]
[1717430716618,5.06706273,3788.2,3788.1,0.1267024]
[1717430717117,3.57290344,3788.2,3788.1,0.1267024]
[1717430717255,3.4059777,3788.2,3788.1,0.1267024]
[1717430717461,3.57290344,3788.2,3788.1,0.1267024]
[1717430717886,3.4059777,3788.2,3788.1,0.1267024]
[1717430718091,3.57290344,3788.2,3788.1,0.1267024]
[1717430718302,3.37736882,3788.2,3788.1,0.1267024]
[1717430718504,3.21044308,3788.2,3788.1,0.1267024]
[1717430718807,3.21039472,3788.2,3788.1,0.1267024]
[1717430719102,4.86965329,3788.2,3788.1,0.1267024]
[1717430719287,0.57062472,3788.2,3788.1,0.1267024]
[1717430720255,0.98441305,3788.2,3788.1,0.1267024]
[1717430722117,1.77941305,3788.2,3788.1,0.1267024]
[1717430723730,1.20878833,3788.2,3788.1,0.1267024]
[1717430723903,3.43732378,3788.2,3788.1,0.1267024]
[1717430724421,5.80992378,3788.2,3788.1,0.1267024]
[1717430724935,0.76980824,3788.2,3788.1,0.1267024]
[1717430725234,0.57064426,3788.2,3788.1,0.1267024]
[1717430725383,0.57064189,3788.2,3788.1,0.1267024]
[1717430725585,1.36564189,3788.2,3788.1,0.1267024]
[1717430731043,3.02326591,3788.2,3788.1,0.1267024]
[1717430731240,4.62777223,3788.2,3788.1,0.1267024]
[1717430731561,4.4286722,3788.2,3788.1,0.1267024]
[1717430731718,5.23102222,3788.2,3788.1,0.1267024]
[1717430732342,4.43602222,3788.2,3788.1,0.1267024]
[1717430732512,5.23102222,3788.2,3788.1,0.1267024]
[1717430732714,7.16466898,3788.2,3788.1,0.1267024]
[1717430733799,5.23102222,3788.2,3788.1,0.1267024]
[1717430735143,10.16466898,3788.2,3788.1,0.1267024]
[1717430736345,8.23102222,3788.2,3788.1,0.1267024]
[1717430736651,10.16436483,3788.2,3788.1,0.1267024]
[1717430736832,2.6405,3787.2,3786.1,5.0898]
[1717430737005,0.795,3786.4,3786.2,1.32126577]
[1717430737506,0.04542221,3786.3,3786.2,1.32126577]
[1717430739319,0.04542221,3786.3,3785.5,2.4687]
[1717430739520,0.795,3786.0,3785.7,2.4757]
[1717430739855,0.043575,3785.9,3785.8,1.32126577]
[1717430740009,0.55211935,3786.2,3785.8,1.32126577]
[1717430740348,0.04365545,3785.9,3785.8,1.32126577]
[1717430740501,0.04371711,3786.1,3785.8,1.32126577]
[1717430740947,0.55211935,3786.4,3785.8,1.32126577]
[1717430741193,0.04364761,3786.0,3785.8,1.32126577]
[1717430741532,0.55211935,3786.3,3785.8,1.32126577]
[1717430741744,0.04354474,3785.9,3785.8,1.32126577]
[1717430741952,0.55211935,3786.3,3785.7,2.4757]
[1717430742250,0.04352208,3785.9,3785.4,0.41360045]
[1717430742570,0.55211935,3786.0,3785.5,1.32126577]
[1717430742854,0.04333864,3785.9,3785.5,1.32126577]
[1717430743700,2.46211935,3786.1,3785.5,1.32126577]
[1717430744262,2.46211935,3786.1,3785.4,2.3819]
[1717430744263,2.6414,3785.9,3785.4,2.3819]
[1717430744609,0.04318336,3785.8,3785.4,2.3819]
[1717430744852,0.04318336,3785.8,3785.0,2.472]
[1717430745053,2.64154,3785.7,3785.1,1.32126577]
[1717430745481,0.04306456,3785.6,3785.1,1.32126577]
[1717430746912,0.04306456,3785.6,3784.7,2.472]
[1717430747226,2.64167,3785.5,3784.8,1.32126577]
[1717430747611,0.0402947,3785.4,3784.8,1.32126577]
[1717430749086,0.0402947,3785.4,3784.5,3.0]
[1717430749288,0.0402947,3785.4,3784.3,0.1267024]
[1717430749443,0.55211935,3785.3,3784.3,0.1267024]
[1717430749635,1.12319424,3785.3,3784.3,0.1267024]
[1717430749998,0.59015408,3785.2,3784.3,0.1267024]
[1717430750138,1.91,3784.9,3784.3,0.1267024]
[1717430750339,0.03995713,3784.8,3784.3,0.1267024]
[1717430750534,0.19499571,3784.7,3784.3,0.1267024]
[1717430750777,0.03985864,3784.6,3784.3,0.1267024]
[1717430751184,2.68220864,3784.6,3784.3,0.1267024]
[1717430754645,2.64242,3784.4,3784.3,0.1267024]
[1717430754844,3.19242,3784.4,3784.3,0.1267024]
[1717430755183,3.57389542,3784.4,3784.3,0.1267024]
[1717430755971,6.06839542,3784.4,3784.3,0.1267024]
[1717430756181,9.63968814,3784.4,3784.3,0.1267024]
[1717430756383,11.48329273,3784.4,3784.3,0.1267024]
[1717430756559,11.21919273,3784.4,3784.3,0.1267024]
[1717430757185,9.63968814,3784.4,3784.3,0.1267024]
[1717430757481,9.06839542,3784.4,3784.3,0.1267024]
[1717430757685,9.6396711,3784.4,3784.3,0.1267024]
[1717430757844,9.06839542,3784.4,3784.3,0.1267024]
[1717430758246,11.21957013,3784.4,3784.3,0.1267024]
[1717430759187,11.21959175,3784.4,3784.3,0.1267024]
[1717430759360,9.63968245,3784.4,3784.3,0.1267024]
[1717430761069,9.90378245,3784.4,3784.3,0.1267024]
[1717430762099,7.14518245,3784.4,3784.3,0.1267024]
[1717430762277,3.25245502,3784.4,3784.3,0.1267024]
[1717430762476,2.68116799,3784.4,3784.3,0.1267024]
[1717430763090,0.03874799,3784.4,3784.3,0.1267024]
[1717430763474,4.22257755,3784.8,3784.3,0.1267024]
[1717430763673,0.03680039,3784.4,3784.3,0.1267024]
[1717430763857,4.22257755,3784.8,3784.3,0.38376264]
[1717430764055,0.03679208,3784.4,3784.3,0.1267024]
[1717430764265,2.15158305,3784.7,3784.3,0.1267024]
[1717430764461,0.03679208,3784.4,3784.3,0.1267024]
[1717430764658,2.15158305,3784.7,3784.3,1.44796817]
[1717430764849,0.21890984,3784.9,3784.4,1.32126577]
[1717430765463,1.79930739,3784.9,3784.4,1.32126577]
[1717430766888,2.15154079,3784.8,3784.4,1.32126577]
[1717430767072,1.58039755,3784.8,3784.4,1.32126577]
[1717430768212,1.58039755,3784.8,3784.3,0.1267024]
[1717430768415,1.58039755,3784.5,3784.3,0.1267024]
[1717430768718,2.15154079,3784.4,3784.3,0.1267024]
[1717430768994,0.57114324,3784.4,3784.3,0.1267024]
[1717430769996,0.47937608,3784.5,3784.3,0.1267024]
[1717430770195,0.57121718,3784.4,3784.3,0.1267024]
[1717430770402,1.12121718,3784.4,3784.3,0.1267024]
[1717430770699,1.00069133,3784.4,3784.3,0.1267024]
[1717430771057,1.57199716,3784.4,3784.3,0.1267024]
[1717430772304,1.57193609,3784.4,3784.3,0.1267024]
[1717430772458,3.96333609,3784.4,3784.3,0.1267024]
[1717430772664,6.96333609,3784.4,3784.3,0.1267024]
[1717430772908,11.19112186,3784.4,3784.3,0.1267024]
[1717430773210,13.83367063,3784.4,3784.3,2.4e-06]
[1717430773503,13.87092208,3784.4,3784.3,2.4e-06]
[1717430773817,2.64326,3783.3,3782.4,2.64381]
[1717430774190,0.60803375,3783.2,3782.4,2.64381]
[1717430775824,0.60803375,3783.2,3783.1,1.38810257]
[1717430776116,0.60803375,3783.2,3783.1,1.52691283]
[1717430776480,0.60803375,3783.2,3783.1,3.86371283]
[1717430776678,0.2641,3784.8,3783.4,2.6431]
[1717430776909,2.64233,3784.6,3783.6,2.64296]
[1717430777114,2.64233,3784.6,3783.7,1.32126577]
[1717430777307,0.03452983,3784.5,3783.7,1.90868835]
[1717430779243,0.03452983,3784.5,3783.1,0.0668368]
[1717430779422,2.64313,3783.4,3783.1,0.0668368]
[1717430779790,0.03394961,3783.3,3783.1,0.0668368]
[1717430780893,2.64326,3783.2,3783.1,0.0668368]
[1717430781304,2.67606976,3783.2,3783.1,0.0668368]
[1717430782947,0.03280976,3783.2,3783.1,0.0668368]
[1717430783127,1.91,3783.8,3783.1,6.42588257]
[1717430783311,0.03152818,3783.2,3783.1,5.1046668]
[1717430783532,7.32,3784.6,3783.4,2.64306]
[1717430783755,2.64218,3784.8,3783.4,2.64306]
[1717430784032,2.6424,3784.5,3783.4,2.64306]
[1717430784198,2.6424,3784.5,3783.5,0.264306]
[1717430784400,0.02785213,3784.4,3783.5,0.264306]
[1717430784599,0.02785213,3784.4,3783.5,1.32126577]
[1717430785149,0.02785213,3784.4,3783.7,2.6429]
[1717430785363,0.02785213,3784.4,3783.8,1.32126577]
[1717430786353,0.02785213,3784.4,3783.7,2.6429]
[1717430786539,0.02785213,3784.4,3783.7,3.96416577]
[1717430788348,0.02785213,3784.4,3783.7,4.36058235]
[1717430790336,0.57997148,3784.4,3783.7,4.36058235]
[1717430790518,0.57997148,3784.4,3783.7,3.96416577]
[1717430791125,0.02785213,3784.4,3783.7,3.96416577]
[1717430791448,0.57997148,3784.4,3783.7,3.96416577]
[1717430791656,0.55211935,3784.3,3783.7,3.96416577]
[1717430791859,0.55211935,3784.3,3783.3,2.64313]
[1717430792041,0.55211935,3784.1,3783.4,1.32126577]
[1717430792418,0.55211935,3783.9,3783.4,1.32126577]
[1717430792943,0.02666853,3783.8,3783.4,1.32126577]
[1717430793339,0.55211935,3784.0,3783.4,1.32126577]
[1717430793547,0.02666446,3783.7,3783.4,1.32126577]
[1717430793715,0.55211935,3783.9,3783.5,2.64305]
[1717430793924,0.55211935,3784.0,3783.6,1.32126577]
[1717430794316,0.82817902,3784.2,3783.6,1.32126577]
[1717430794317,0.55211935,3783.9,3783.6,1.32126577]
[1717430794516,0.82817902,3784.2,3783.6,1.32126577]
[1717430794517,0.55211935,3784.0,3783.6,1.32126577]
[1717430794768,0.55211935,3784.1,3783.6,1.32126577]
[1717430794933,0.55211935,3783.9,3783.6,1.32126577]
[1717430796218,0.55211935,3783.8,3783.6,1.32126577]
[1717430796421,0.55211935,3783.8,3783.1,2.7101068]
[1717430796658,0.55211935,3783.7,3783.2,1.32126577]
[1717430796859,0.55211935,3783.4,3783.2,1.32126577]
[1717430797228,0.55211935,3783.4,3783.1,2.7101068]
[1717430797434,0.55211935,3783.3,3783.1,4.03137257]
[1717430798050,0.55211935,3783.3,3783.1,1.38810257]
[1717430798653,0.55211935,3783.3,3783.1,0.0668368]
[1717430798991,1.49895948,3783.3,3783.1,0.0668368]
[1717430799343,0.82817902,3783.2,3783.1,0.0668368]
[1717430799648,1.39954921,3783.2,3783.1,0.0668368]
[1717430801355,0.82817902,3783.2,3783.1,0.0668368]
[1717430802860,1.39955594,3783.2,3783.1,0.0668368]
[1717430803062,2.01274559,3783.2,3783.1,0.0668368]
[1717430803493,0.63922619,3783.2,3783.1,0.0668368]
[1717430803705,1.46740521,3783.2,3783.1,0.0668368]
[1717430803908,2.03878536,3783.2,3783.1,0.0668368]
[1717430804375,3.61900286,3783.2,3783.1,0.0668368]
[1717430804861,2.03878536,3783.2,3783.1,0.0668368]
[1717430805219,2.03878536,3783.2,3783.1,1.38810257]
[1717430805220,0.02603654,3783.2,3783.1,1.38810257]
[1717430805379,0.55095072,3783.7,3783.1,0.0668368]
[1717430805583,0.55095072,3783.7,3783.2,1.32126577]
[1717430805768,0.02644625,3783.6,3783.2,1.32126577]
[1717430805969,7.87095072,3783.8,3783.2,1.32126577]
[1717430805970,0.55095072,3783.7,3783.2,1.32126577]
[1717430806198,0.02654268,3783.6,3783.2,1.32126577]
[1717430806507,0.02654268,3783.6,3783.2,4.36767103]
[1717430806812,0.02654268,3783.6,3783.3,2.3501]
[1717430806999,0.02654268,3783.6,3783.4,3.96438577]
[1717430807714,7.32,3783.8,3783.4,3.96438577]
[1717430807916,0.02635205,3783.5,3783.4,3.96438577]
[1717430808068,0.55095072,3783.8,3783.4,4.64283355]
[1717430808269,0.02635205,3783.5,3783.4,4.64283355]
[1717430808511,0.55095072,3783.8,3783.4,4.64283355]
[1717430809044,0.0265406,3783.7,3783.4,4.64283355]
[1717430809394,0.55095072,3783.9,3783.4,4.64283355]
[1717430809714,0.02681257,3783.8,3783.6,2.64297]
[1717430809916,0.02681257,3783.8,3783.7,1.32126577]
[1717430810213,0.55095072,3784.1,3783.8,2.64283]
[1717430810428,0.0271787,3784.0,3783.9,1.32126577]
[1717430810585,0.55095072,3784.3,3783.9,1.32126577]
[1717430810786,0.02639264,3784.2,3783.9,1.32126577]
[1717430810986,0.55095072,3784.2,3783.9,1.32126577]
[1717430811213,0.0263434,3784.1,3783.9,1.32126577]
[1717430811611,0.0263434,3784.1,3783.3,4.99327]
[1717430811834,0.93302319,3784.1,3783.4,1.32126577]
[1717430812132,0.55095072,3783.8,3783.4,1.32126577]
[1717430812522,0.5770299,3783.7,3783.4,1.32126577]
[1717430812912,0.02607918,3783.7,3783.4,1.32126577]
[1717430813292,0.55095072,3783.8,3783.4,1.32126577]
[1717430813493,0.02586653,3783.6,3783.4,1.32126577]
[1717430813725,0.55095072,3783.8,3783.4,1.32126577]
[1717430813927,0.02577959,3783.5,3783.4,1.32126577]
[1717430814129,0.55095072,3783.9,3783.4,1.32126577]
[1717430814334,0.0258441,3783.5,3783.4,1.32126577]
[1717430814531,0.55095072,3783.7,3783.4,1.32126577]
[1717430815021,0.02584677,3783.6,3783.4,1.32126577]
[1717430816123,0.57679749,3783.6,3783.4,1.32126577]
[1717430816813,0.02584677,3783.6,3783.4,1.32126577]
[1717430817211,0.02584677,3783.6,3783.5,0.63145358]
[1717430817420,0.02584677,3783.6,3783.5,1.95271935]
[1717430817762,0.55095072,3783.9,3783.6,2.64296]
[1717430817903,0.55095072,3783.9,3783.7,1.32126577]
[1717430818504,0.02573935,3783.8,3783.7,1.32126577]
[1717430819447,0.57669007,3783.8,3783.7,1.32126577]
[1717430819801,0.02573935,3783.8,3783.7,1.32126577]
[1717430820203,0.57669007,3783.8,3783.7,1.32126577]
[1717430820952,0.57669007,3783.8,3783.3,2.3501]
[1717430821118,0.55159453,3783.7,3783.4,1.32126577]
[1717430821459,0.55159453,3783.7,3782.2,2.6439]
[1717430821460,0.57737969,3783.6,3782.8,2.64348]
[1717430821603,0.55159453,3783.4,3782.8,2.64348]
[1717430821805,2.43508779,3783.3,3782.8,2.64348]
[1717430822055,3.00635418,3783.3,3782.8,2.64348]
[1717430822409,2.43508779,3783.3,3782.8,2.64348]
[1717430822609,3.00642651,3783.3,3782.8,2.64348]
[1717430822809,2.43508779,3783.3,3782.8,2.64348]
[1717430823221,3.00642651,3783.3,3782.8,2.64348]
[1717430823401,2.40946289,3783.2,3782.8,2.64348]
[1717430823606,3.00632349,3783.2,3782.8,2.64348]
[1717430825655,2.43496558,3783.2,3782.8,2.64348]
[1717430826205,2.43496558,3783.2,3782.4,2.4995]
[1717430826437,2.43496558,3783.2,3782.4,5.14327]
[1717430826848,0.02543874,3783.2,3782.4,5.14327]
[1717430827031,1.1042387,3783.3,3782.4,5.14327]
[1717430827355,2.43404701,3783.2,3782.4,5.14327]
[1717430827537,3.00540492,3783.2,3782.4,5.14327]
[1717430827934,2.43404701,3783.2,3782.4,2.4995]
[1717430828120,1.42401512,3783.2,3783.1,1.38810257]
[1717430828322,0.02523533,3783.2,3783.1,4.01881283]
[1717430828713,0.55167494,3783.6,3783.1,4.01881283]
[1717430828930,0.55167494,3783.6,3783.2,1.32126577]
[1717430829452,0.55167494,3783.5,3783.2,1.32126577]
[1717430829615,0.55167494,3783.6,3783.3,2.64319]
[1717430829815,0.55167494,3783.6,3783.4,1.32126577]
[1717430830051,0.55167494,3783.7,3783.4,1.97358503]
[1717430830219,0.55167494,3783.8,3783.4,1.97358503]
[1717430830412,0.55167494,3783.7,3783.4,1.97358503]
[1717430830666,0.55167494,3783.7,3783.4,1.32126577]
[1717430831009,0.55167494,3783.5,3783.4,1.32126577]
[1717430831426,2.98044633,3783.6,3783.4,1.32126577]
[1717430831764,0.55187926,3783.5,3783.4,1.32126577]
[1717430832654,0.55187926,3783.6,3783.5,2.64305]
[1717430832824,7.32,3783.9,3783.5,4.36074735]
[1717430833025,7.32,3783.9,3783.6,1.32126577]
[1717430833227,7.87187926,3783.9,3783.6,1.32126577]
[1717430833427,0.57734001,3783.8,3783.6,1.32126577]
[1717430834327,0.02546075,3783.8,3783.7,2.64291]
[1717430834523,0.02546075,3783.8,3783.7,3.96417577]
[1717430834734,0.02546075,3783.8,3783.7,4.36059335]
[1717430836372,0.02546075,3783.8,3783.7,3.96417577]
[1717430837774,0.55187926,3784.0,3783.7,3.96417577]
[1717430837960,0.55187926,3784.0,3783.7,2.64291]
[1717430837961,0.57759019,3783.8,3783.7,2.64291]
[1717430838278,0.57766408,3783.8,3783.3,2.64313]
[1717430838479,0.55187926,3783.7,3783.3,2.64313]
[1717430838777,0.55187926,3783.6,3783.3,2.64313]
[1717430839145,0.02560776,3783.5,3783.3,2.64313]
[1717430839351,0.02560776,3783.5,3783.4,1.32126577]
[1717430839741,0.02560776,3783.5,3783.4,1.97357903]
[1717430840472,0.55187926,3783.8,3783.5,2.64305]
[1717430840659,0.55187926,3783.8,3783.6,1.32126577]
[1717430841691,0.55187926,3783.7,3783.6,1.32126577]
[1717430841843,0.55187926,3783.7,3783.1,5.2020068]
[1717430842183,0.55187926,3783.8,3783.2,2.14146645]
[1717430842369,0.55187926,3783.7,3783.2,2.14146645]
[1717430842978,0.55187926,3783.7,3783.3,2.64317]
[1717430843179,1.1231175,3783.8,3783.4,1.32126577]
[1717430843352,0.55187926,3783.9,3783.4,1.32126577]
[1717430843552,0.55187926,3783.8,3783.5,2.85719664]
[1717430843807,0.55187926,3783.8,3783.6,1.32126577]
[1717430844145,0.55187926,3783.9,3783.6,1.32126577]
[1717430844467,0.55187926,3783.9,3783.7,2.64291]
[1717430844665,0.55187926,3783.9,3783.8,1.32126577]
[1717430846356,2.98064008,3784.0,3783.8,1.32126577]
[1717430846784,2.81791436,3784.0,3783.3,2.64313]
[1717430847105,0.55204962,3783.6,3783.4,1.32126577]
[1717430848104,0.55204962,3783.7,3783.4,1.32126577]
[1717430848273,0.55204962,3783.6,3783.4,1.32126577]
[1717430848475,0.0271057,3783.5,3783.4,1.32126577]
[1717430848785,0.0271057,3783.5,3783.4,1.46007603]
[1717430849173,0.0271057,3783.5,3783.4,3.89417603]
[1717430849412,0.5522237,3784.0,3783.8,2.6428]
[1717430849594,0.82807443,3784.1,3783.9,1.32126577]
[1717430849595,0.5522237,3784.1,3783.9,1.32126577]
[1717430850609,0.5522237,3784.0,3783.9,1.32126577]
[1717430850804,0.5522237,3784.1,3783.9,1.32126577]
[1717430851037,0.5522237,3784.1,3784.0,2.6427]
[1717430851186,0.5522237,3784.2,3784.0,3.96396577]
[1717430851517,2.68673196,3784.5,3784.0,3.96396577]
[1717430851518,0.5522237,3784.5,3784.2,2.64256]
[1717430851667,0.74695032,3784.6,3784.2,2.64256]
[1717430852013,0.19472662,3784.6,3784.2,2.64256]
[1717430852177,0.5522237,3784.8,3784.7,2.64221]
[1717430852508,1.1042387,3785.2,3785.0,2.64196]
[1717430852509,0.5522237,3785.2,3785.0,2.64196]
[1717430852865,0.5522237,3785.3,3785.0,2.64196]
[1717430853289,0.5522237,3785.4,3785.0,2.64196]
[1717430853511,0.5522237,3785.4,3785.2,2.64186]
[1717430853717,0.5522237,3785.4,3785.1,1.32126577]
[1717430853718,0.5522237,3785.6,3785.4,2.64172]
[1717430853870,0.5522237,3785.8,3785.5,1.32126577]
[1717430854070,0.0489134,3785.7,3785.5,1.32126577]
[1717430856319,0.0489134,3785.7,3785.6,2.64158]
[1717430856528,0.0489134,3785.7,3785.6,3.96284577]
[1717430857606,0.5522237,3786.1,3785.6,3.96284577]
[1717430857809,0.5522237,3786.1,3785.7,1.32126577]
[1717430858035,0.5522237,3786.1,3785.7,1.3740924]
[1717430858237,0.5522237,3786.3,3785.8,2.64143]
[1717430858448,0.5522237,3786.5,3785.9,1.32126577]
[1717430859419,0.5522237,3786.6,3785.9,1.32126577]
[1717430859617,0.5522237,3786.7,3785.9,1.32126577]
[1717430859832,0.85504601,3786.6,3785.9,1.32126577]
[1717430860020,0.85504601,3786.6,3786.0,2.64128]
[1717430860232,0.85504601,3786.6,3786.1,1.32126577]
[1717430861255,3.1929237,3786.9,3786.1,1.32126577]
[1717430861866,2.6407,3786.9,3786.1,1.32126577]
[1717430863374,3.5828387,3787.4,3786.2,1.32126577]
[1717430863375,0.02456876,3786.8,3786.2,1.32126577]
[1717430863532,1.12303261,3787.4,3786.2,1.32126577]
[1717430863727,1.58349931,3787.5,3786.2,1.32126577]
[1717430863728,0.35346064,3787.3,3786.2,1.32126577]
[1717430863932,0.37924857,3787.3,3786.2,1.32126577]
[1717430864187,0.37924857,3787.3,3786.2,3.96239577]
[1717430866276,0.02578793,3787.3,3786.5,2.64093]
[1717430866569,0.02578793,3787.3,3786.6,1.32126577]
[1717430866948,0.02578793,3787.3,3786.7,2.64081]
[1717430867143,2.64024,3787.6,3786.8,1.32126577]
[1717430867361,0.02564053,3787.2,3786.3,2.64104]
[1717430867557,2.64039,3787.4,3786.4,1.58536977]
[1717430867878,0.02559901,3787.1,3786.4,1.32126577]
[1717430868278,2.64039,3787.4,3786.4,1.32126577]
[1717430868575,0.02554628,3787.0,3786.4,1.32126577]
[1717430868730,2.64039,3787.4,3786.4,1.32126577]
[1717430868938,0.02549356,3786.9,3786.4,1.32126577]
[1717430869135,2.64039,3787.4,3786.5,0.39623058]
[1717430869348,0.02544083,3786.8,3786.6,1.32126577]
[1717430869559,2.64039,3787.4,3786.6,1.32126577]
[1717430869744,0.02533484,3786.7,3786.6,1.32126577]
[1717430870047,2.64039,3787.4,3786.6,1.7571194]
[1717430870246,2.64039,3787.4,3786.6,1.32126577]
[1717430870460,0.02563097,3787.3,3786.6,1.32126577]
[1717430871482,2.64039,3787.4,3786.6,1.32126577]
[1717430872288,2.64056,3787.1,3786.3,2.64104]
[1717430872445,1.91,3787.0,3786.3,1.32126577]
[1717430873145,4.92607539,3787.1,3786.3,1.32126577]
[1717430873345,2.15444542,3787.0,3786.3,1.32126577]
[1717430874290,2.15444542,3786.9,3786.3,1.32126577]
[1717430874506,1.58359939,3786.9,3786.3,1.32126577]
[1717430874989,1.58359939,3787.0,3786.3,1.32126577]
[1717430875405,2.15444417,3786.9,3786.3,1.32126577]
[1717430875847,1.58359939,3786.9,3786.3,1.32126577]
[1717430876043,1.58389271,3786.9,3786.3,1.32126577]
[1717430876279,1.58389271,3786.8,3786.3,1.32126577]
[1717430876483,1.58389271,3786.9,3786.4,1.32126577]
[1717430876896,2.64056,3787.1,3786.4,1.32126577]
[1717430877380,0.57078845,3787.0,3786.5,2.64095]
[1717430877555,1.58408909,3787.1,3786.7,2.64081]
[1717430877756,1.58408909,3787.1,3786.8,1.32126577]
[1717430878003,1.58408909,3787.3,3786.9,0.39620758]
[1717430878166,2.15484067,3787.2,3786.9,0.39620758]
[1717430878375,0.57075158,3787.2,3786.9,0.39620758]
[1717430878570,2.15495699,3787.1,3786.8,1.32126577]
[1717430878777,1.58419068,3787.0,3786.8,1.32126577]
[1717430879091,1.58419068,3786.9,3786.8,1.32126577]
[1717430879336,0.57076631,3786.9,3786.8,1.32126577]
[1717430879546,0.57076631,3787.4,3786.8,1.32126577]
[1717430879707,0.57076631,3787.3,3786.8,1.32126577]
[1717430879890,0.57076631,3787.2,3786.8,1.32126577]
[1717430880091,1.58415675,3786.9,3786.8,1.45339235]
[1717430880301,0.57076631,3787.0,3786.8,1.45339235]
[1717430881739,2.15500908,3786.5,3786.4,1.94919635]
[1717430881940,2.15506779,3786.5,3786.4,1.94919635]
[1717430882449,0.57080348,3786.5,3786.4,1.94919635]
[1717430882739,2.1551018,3786.5,3786.4,1.94919635]
[1717430883036,1.58429832,3786.7,3786.5,2.64096]
[1717430883222,1.58429832,3786.7,3786.6,1.32126577]
[1717430883426,0.57076222,3786.7,3786.6,1.32126577]
[1717430889290,0.57076222,3786.7,3786.1,2.6412]
[1717430889497,0.57076222,3786.6,3786.2,1.32126577]
[1717430889677,0.57076222,3786.5,3786.2,1.32126577]
[1717430889994,0.57076222,3786.4,3786.2,1.94466235]
[1717430890208,0.57076222,3786.3,3786.2,1.94466235]
[1717430890551,2.64064,3787.0,3786.2,1.94466235]
[1717430890752,0.57083721,3786.9,3786.2,1.94466235]
[1717430890953,0.57083721,3786.8,3786.2,1.94466235]
[1717430891248,0.57083721,3786.7,3786.3,0.45858624]
[1717430891491,0.57083721,3786.6,3786.4,1.32126577]
[1717430891700,0.57083721,3786.5,3786.4,1.32126577]
[1717430892395,0.57083721,3786.5,3786.4,3.57856577]
[1717430892592,0.5522237,3787.3,3786.4,6.21956577]
[1717430892801,0.5708002,3787.2,3786.4,6.94972063]
[1717430893093,0.5708002,3787.1,3786.4,6.94972063]
[1717430893316,0.5708002,3787.0,3786.4,6.94972063]
[1717430893529,0.5708002,3786.9,3786.4,6.94972063]
[1717430893906,0.5708002,3786.8,3786.4,6.94972063]
[1717430894111,0.5708002,3786.7,3786.5,0.74083069]
[1717430894314,0.5522237,3787.0,3786.6,1.32126577]
[1717430894513,0.57080953,3786.9,3786.6,1.32126577]
[1717430894715,0.57080953,3786.8,3786.6,1.32126577]
[1717430894930,0.57080953,3786.7,3786.6,1.32126577]
[1717430895583,0.57080953,3786.7,3786.3,0.45858624]
[1717430895815,0.57080953,3786.6,3786.4,1.32126577]
[1717430896013,0.57080953,3786.5,3786.4,1.32126577]
[1717430896222,0.57084285,3786.5,3786.4,1.32126577]
[1717430896423,1.12306655,3786.5,3786.4,1.32126577]
[1717430897329,1.59403138,3786.5,3785.7,2.64146]
[1717430897548,0.55253262,3786.0,3785.7,1.32126577]
[1717430897845,0.82879894,3785.9,3785.7,1.32126577]
[1717430897983,1.6759081,3785.9,3785.7,1.32126577]
[1717430898183,0.57098389,3785.8,3785.7,1.32126577]
[1717430898384,1.67604914,3785.8,3785.7,1.32126577]
[1717430900231,2.68783037,3785.8,3785.7,1.32126577]
[1717430900691,1.67604914,3785.8,3785.7,1.32126577]
[1717430900893,1.58285688,3785.8,3785.7,1.32126577]
[1717430901430,0.82859558,3785.8,3785.7,1.32126577]
[1717430901855,0.82859558,3785.8,3785.7,1.45339235]
[1717430902148,0.82859558,3785.8,3785.7,1.32126577]
[1717430906127,0.82859558,3785.9,3785.7,1.32126577]
[1717430906331,0.82859558,3785.8,3785.2,2.64184]
[1717430906513,1.10506525,3786.0,3785.2,2.64184]
[1717430906514,0.55202446,3785.6,3785.2,2.64184]
[1717430906713,0.55202446,3785.6,3785.2,2.906024]
[1717430907103,0.55202446,3785.5,3785.2,2.906024]
[1717430907427,0.55202446,3785.5,3785.3,1.32126577]
[1717430907842,0.55202446,3785.5,3785.3,1.74399475]
[1717430908189,0.82803669,3785.7,3785.3,1.32126577]
[1717430908190,0.55202446,3785.6,3785.3,1.32126577]
[1717430908394,0.55202446,3785.5,3785.3,1.32126577]
[1717430908644,0.55202446,3785.4,3785.3,1.32126577]
[1717430908823,0.55202446,3785.5,3785.3,1.32126577]
[1717430909025,0.55202446,3785.4,3785.3,1.32126577]
[1717430909541,0.55202446,3785.5,3785.3,1.32126577]
[1717430910194,0.82803669,3785.6,3785.3,1.32126577]
[1717430910195,0.55202446,3785.4,3785.3,1.32126577]
[1717430911038,0.82803669,3785.5,3785.3,1.32126577]
[1717430911246,0.55160163,3785.4,3785.3,1.32126577]
[1717430911821,0.55160163,3785.5,3785.3,1.32126577]
[1717430913059,0.55160163,3785.6,3785.3,1.32126577]
[1717430915825,0.55160163,3785.8,3785.3,1.45339235]
[1717430916024,0.55160163,3785.8,3785.3,3.72119235]
[1717430916419,0.55160163,3785.7,3785.3,3.72119235]
[1717430917066,0.55160163,3785.7,3785.4,3.27801924]
[1717430917256,0.55160163,3785.8,3785.6,2.64158]
[1717430917467,0.82803669,3786.0,3785.7,1.32126577]
[1717430917468,1.58183725,3786.0,3785.7,1.32126577]
[1717430917635,0.55160163,3786.1,3785.7,1.32126577]
[1717430917948,0.55160163,3786.0,3785.8,0.39628458]
[1717430918292,0.55160163,3786.0,3785.8,1.32126577]
[1717430918463,0.82803669,3786.0,3785.8,1.32126577]
[1717430918665,0.55133518,3785.9,3785.8,1.32126577]
[1717430918866,0.57098494,3786.0,3785.8,1.32126577]
[1717430919051,0.55139341,3786.1,3785.8,1.32126577]
[1717430919831,0.55139341,3786.1,3785.9,1.32126577]
[1717430921338,0.55139341,3786.2,3785.9,1.32126577]
[1717430922638,0.55139341,3786.1,3785.9,1.32126577]
[1717430923376,1.12229987,3786.2,3785.9,1.32126577]
[1717430923561,1.12229546,3786.2,3785.9,1.32126577]
[1717430923771,0.55139341,3786.2,3785.9,1.32126577]
[1717430923972,1.12229546,3786.2,3785.9,1.32126577]
[1717430924141,2.13444728,3786.2,3785.9,1.32126577]
[1717430924344,0.55139341,3786.2,3785.9,1.32126577]
[1717430925094,0.55139341,3786.1,3785.9,1.32126577]